[Event "FIDE Women World-chT-KO 2021"]
[Site "Sitges"]
[Date "2021.09.30"]
[Round "1.1"]
[White "Goryachkina, Aleksandra"]
[Black "Cori T., Deysi"]
[Result "1-0"]
[ECO "D35"]
[WhiteElo "2608"]
[BlackElo "2382"]
[Annotator "ChessBase"]
[PlyCount "105"]
[EventDate "2021.09.30"]
[EventType "team-tourn"]
[EventCountry "ESP"]
[SourceTitle "playchess.com"]
[Source "ChessBase"]
[SourceQuality "1"]
[WhiteTeam "Russia"]
[BlackTeam "Peru"]
[WhiteTeamCountry "RUS"]
[BlackTeamCountry "PER"]
[TimeControl "2700+10"]

1. c4 {[%emt 0:00:05]} e6 {[%emt 0:00:19]} 2. Nc3 {[%emt 0:00:07]} d5 {[%emt 0:
00:02]} 3. d4 {[%emt 0:00:08]} Nf6 {[%emt 0:00:30]} 4. cxd5 {[%emt 0:00:08]}
exd5 {[%emt 0:00:16]} 5. Bg5 {[%emt 0:00:08]} Be7 {[%emt 0:00:31]} 6. e3 {
[%emt 0:00:28]} h6 {[%emt 0:02:00]} 7. Bh4 {[%emt 0:00:40]} O-O {[%emt 0:04:16]
} 8. Bd3 {[%emt 0:00:30]} c5 {[%emt 0:01:20]} 9. dxc5 {[%emt 0:03:08]} Nbd7 {
[%emt 0:00:50]} 10. Nge2 {[%emt 0:02:18]} Nxc5 {[%emt 0:00:48]} 11. O-O {
[%emt 0:00:16]} Be6 {[%emt 0:01:48]} 12. Rc1 {[%emt 0:00:47]} Qb6 {[%emt 0:00:
47]} 13. Rc2 {[%emt 0:00:48]} Rfe8 {[%emt 0:03:40]} 14. Nd4 {[%emt 0:00:43]}
Nfe4 {[%emt 0:00:55]} 15. Bxe7 {[%emt 0:00:22]} Rxe7 {[%emt 0:01:27]} 16. Nce2
{[%emt 0:01:13]} Rc7 {[%emt 0:03:44]} 17. Nf4 {[%emt 0:00:43]} Re8 {[%emt 0:09:
49]} 18. Be2 {[%emt 0:02:04]} a6 {[%emt 0:00:55]} 19. h3 {[%emt 0:01:57]} Qd6 {
[%emt 0:01:21]} 20. Bf3 {[%emt 0:01:15]} Ng5 {[%emt 0:00:39]} 21. Bh5 {[%emt 0:
01:36]} Rec8 {[%emt 0:01:13]} 22. Qe2 {[%emt 0:01:55]} Nd7 {[%emt 0:01:15]} 23.
Rxc7 {[%emt 0:00:47]} Rxc7 {[%emt 0:00:04]} 24. Rd1 {[%emt 0:00:23]} Nf6 {
[%emt 0:00:50]} 25. Bf3 {[%emt 0:01:03]} Qe5 {[%emt 0:01:02]} 26. Qd2 {[%emt 0:
01:21]} Rc4 {[%emt 0:04:24]} 27. b3 {[%emt 0:02:05]} Rc8 {[%emt 0:00:06]} 28.
Rc1 {[%emt 0:00:45]} Nxf3+ {[%emt 0:01:29]} 29. Nxf3 {[%emt 0:00:25]} Qb8 {
[%emt 0:00:07]} 30. Nd4 {[%emt 0:00:28]} Re8 {[%emt 0:00:16]} 31. Qa5 {[%emt 0:
00:45]} Rc8 {[%emt 0:00:52]} 32. Qa3 {[%emt 0:00:58]} Bd7 {[%emt 0:00:36]} 33.
Qb2 {[%emt 0:01:23]} Re8 {[%emt 0:00:33]} 34. Rc2 {[%emt 0:00:57]} Qd6 {
[%emt 0:00:13]} 35. Qc3 {[%emt 0:02:13]} Rc8 {[%emt 0:00:27]} 36. Qd2 {[%emt 0:
00:02]} Re8 {[%emt 0:00:04]} 37. Qa5 {[%emt 0:00:11]} g5 {[%emt 0:00:56]} 38.
Nfe2 {[%emt 0:00:49]} Rc8 {[%emt 0:00:15]} 39. Rxc8+ {[%emt 0:01:36]} Bxc8 {
[%emt 0:00:01]} 40. Qc3 {[%emt 0:01:57]} Bd7 {[%emt 0:00:15]} 41. Qc2 {[%emt 0:
00:20]} Ne4 {[%emt 0:00:12]} 42. Nc3 {[%emt 0:00:48]} Nf6 {[%emt 0:00:13]} 43.
Nde2 {[%emt 0:01:21]} Qe5 {[%emt 0:00:27]} 44. Qd2 {[%emt 0:00:21]} Be6 {
[%emt 0:00:23]} 45. f4 {[%emt 0:01:37]} Qc7 {[%emt 0:00:14]} 46. Qd4 {[%emt 0:
00:32]} Qe7 {[%emt 0:00:11]} 47. Ng3 {[%emt 0:00:26]} gxf4 {[%emt 0:00:11]} 48.
exf4 {[%emt 0:00:01]} Bc8 {[%emt 0:00:12]} 49. Nxd5 {[%emt 0:01:00]} Nxd5 {
[%emt 0:00:02]} 50. Qxd5 {[%emt 0:00:08]} Qe3+ {[%emt 0:00:17]} 51. Kh2 {
[%emt 0:00:01]} Be6 {[%emt 0:00:03]} 52. Qd8+ {[%emt 0:00:06]} Kh7 {[%emt 0:00:
06]} 53. f5 {[%emt 0:00:27]} 1-0

[Event "FIDE Women World-chT-KO 2021"]
[Site "Sitges"]
[Date "2021.09.30"]
[Round "1.1"]
[White "Lagno, Kateryna"]
[Black "Ouellet, Maili-Jade"]
[Result "1-0"]
[ECO "B84"]
[WhiteElo "2550"]
[BlackElo "2254"]
[Annotator "ChessBase"]
[PlyCount "63"]
[EventDate "2021.09.30"]
[EventType "team-tourn"]
[EventCountry "ESP"]
[SourceTitle "playchess.com"]
[Source "ChessBase"]
[SourceQuality "1"]
[WhiteTeam "Russia"]
[BlackTeam "Canada"]
[WhiteTeamCountry "RUS"]
[BlackTeamCountry "CAN"]
[TimeControl "2700+10"]

1. e4 {[%emt 0:00:02]} c5 {[%emt 0:00:01]} 2. Nf3 {[%emt 0:00:02]} d6 {[%emt 0:
00:01]} 3. d4 {[%emt 0:00:02]} cxd4 {[%emt 0:00:02]} 4. Nxd4 {[%emt 0:00:02]}
Nf6 {[%emt 0:00:02]} 5. Nc3 {[%emt 0:00:03]} a6 {[%emt 0:00:01]} 6. Be2 {
[%emt 0:00:02]} e6 {[%emt 0:00:01]} 7. Be3 {[%emt 0:00:16]} Be7 {[%emt 0:00:05]
} 8. Qd2 {[%emt 0:00:08]} Qc7 {[%emt 0:00:11]} 9. O-O-O {[%emt 0:02:56]} Nbd7 {
[%emt 0:00:39]} 10. g4 {[%emt 0:01:10]} Nc5 {[%emt 0:00:50]} 11. f3 {[%emt 0:
00:53]} b5 {[%emt 0:01:12]} 12. g5 {[%emt 0:02:37]} Nfd7 {[%emt 0:01:03]} 13.
a3 {[%emt 0:06:06]} Bb7 {[%emt 0:05:02]} 14. h4 {[%emt 0:00:27]} Ne5 {[%emt 0:
01:15]} 15. h5 {[%emt 0:00:17]} Rc8 {[%emt 0:07:46]} 16. Kb1 {[%emt 0:00:26]}
Ncd7 {[%emt 0:06:37]} 17. g6 {[%emt 0:02:24]} hxg6 {[%emt 0:02:15]} 18. hxg6 {
[%emt 0:00:04]} Nxg6 {[%emt 0:00:38]} 19. Rxh8+ {[%emt 0:00:08]} Nxh8 {[%emt 0:
00:02]} 20. f4 {[%emt 0:01:38]} Nf6 {[%emt 0:02:02]} 21. Bd3 {[%emt 0:03:25]}
Ng6 {[%emt 0:02:01]} 22. e5 {[%emt 0:03:45]} dxe5 {[%emt 0:02:02]} 23. Nxe6 {
[%emt 0:00:23]} fxe6 {[%emt 0:03:05]} 24. Bxg6+ {[%emt 0:00:05]} Kf8 {[%emt 0:
00:01]} 25. Qh2 {[%emt 0:02:05]} Bd6 {[%emt 0:07:19]} 26. Qh8+ {[%emt 0:02:34]}
Ng8 {[%emt 0:00:01]} 27. Bh7 {[%emt 0:00:48]} Qf7 {[%emt 0:02:56]} 28. Rxd6 {
[%emt 0:00:54]} exf4 {[%emt 0:00:20]} 29. Rd7 {[%emt 0:05:05]} Qxd7 {[%emt 0:
00:30]} 30. Qxg8+ {[%emt 0:00:02]} Ke7 {[%emt 0:00:01]} 31. Qxg7+ {[%emt 0:00:
04]} Kd6 {[%emt 0:00:17]} 32. Bxf4+ {[%emt 0:00:10]} 1-0

[Event "FIDE Women World-chT-KO 2021"]
[Site "Sitges"]
[Date "2021.09.30"]
[Round "1.1"]
[White "Muzychuk, Anna"]
[Black "Danielian, Elina"]
[Result "0-1"]
[ECO "C11"]
[WhiteElo "2534"]
[BlackElo "2450"]
[Annotator "ChessBase"]
[PlyCount "72"]
[EventDate "2021.09.30"]
[EventType "team-tourn"]
[EventCountry "ESP"]
[SourceTitle "playchess.com"]
[Source "ChessBase"]
[SourceQuality "1"]
[WhiteTeam "Ukraine"]
[BlackTeam "Armenia"]
[WhiteTeamCountry "UKR"]
[BlackTeamCountry "ARM"]
[TimeControl "2700+10"]

1. e4 {[%emt 0:00:03]} e6 {[%emt 0:00:03]} 2. d4 {[%emt 0:00:04]} d5 {[%emt 0:
00:02]} 3. Nc3 {[%emt 0:00:06]} Nf6 {[%emt 0:00:02]} 4. e5 {[%emt 0:00:07]}
Nfd7 {[%emt 0:00:01]} 5. f4 {[%emt 0:00:04]} c5 {[%emt 0:00:02]} 6. Nf3 {
[%emt 0:00:05]} Nc6 {[%emt 0:00:03]} 7. Be3 {[%emt 0:00:05]} a6 {[%emt 0:00:21]
} 8. a3 {[%emt 0:00:27]} cxd4 {[%emt 0:05:35]} 9. Nxd4 {[%emt 0:00:27]} Bc5 {
[%emt 0:00:07]} 10. Qd2 {[%emt 0:00:24]} O-O {[%emt 0:00:09]} 11. O-O-O {
[%emt 0:00:41]} Nxd4 {[%emt 0:01:25]} 12. Bxd4 {[%emt 0:00:02]} b5 {[%emt 0:00:
15]} 13. Bxc5 {[%emt 0:00:52]} Nxc5 {[%emt 0:00:03]} 14. b4 {[%emt 0:00:24]}
Nd7 {[%emt 0:01:04]} 15. Ne2 {[%emt 0:00:11]} Nb6 {[%emt 0:01:31]} 16. Nd4 {
[%emt 0:00:04]} Qc7 {[%emt 0:04:16]} 17. h4 {[%emt 0:00:38]} Nc4 {[%emt 0:00:
46]} 18. Bxc4 {[%emt 0:01:42]} dxc4 {[%emt 0:01:55]} 19. Rh3 {[%emt 0:02:57]}
Bb7 {[%emt 0:01:48]} 20. h5 {[%emt 0:00:45]} Rfd8 {[%emt 0:05:04]} 21. h6 {
[%emt 0:16:03]} g6 {[%emt 0:00:08]} 22. g4 {[%emt 0:00:29]} Rd5 {[%emt 0:05:21]
} 23. Qe1 {[%emt 0:03:58]} g5 {[%emt 0:06:35]} 24. Rh5 {[%emt 0:04:50]} gxf4 {
[%emt 0:01:14]} 25. Qe4 {[%emt 0:04:20]} f5 {[%emt 0:08:56]} 26. gxf5 {[%emt 0:
04:56]} Qxe5 {[%emt 0:00:11]} 27. Qxe5 {[%emt 0:03:15]} Rxe5 {[%emt 0:00:01]}
28. Nxe6 {[%emt 0:00:01]} f3 {[%emt 0:01:21]} 29. Rg5+ {[%emt 0:00:33]} Kf7 {
[%emt 0:00:20]} 30. Rg7+ {[%emt 0:00:44]} Kf6 {[%emt 0:00:01]} 31. Rxb7 {
[%emt 0:00:22]} f2 {[%emt 0:00:18]} 32. Nf4 {[%emt 0:00:36]} Re1 {[%emt 0:00:
34]} 33. Nh5+ {[%emt 0:00:05]} Kg5 {[%emt 0:00:30]} 34. Ng3 {[%emt 0:00:08]}
Rd8 {[%emt 0:00:35]} 35. Ne4+ {[%emt 0:00:17]} Rxe4 {[%emt 0:00:04]} 36. Rg7+ {
[%emt 0:00:13]} Kf4 {[%emt 0:00:09]} 0-1

[Event "FIDE Women World-chT-KO 2021"]
[Site "Sitges"]
[Date "2021.09.30"]
[Round "1.1"]
[White "Dzagnidze, Nana"]
[Black "Mammadzada, Gunay"]
[Result "1-0"]
[ECO "A07"]
[WhiteElo "2525"]
[BlackElo "2459"]
[Annotator "ChessBase"]
[PlyCount "73"]
[EventDate "2021.09.30"]
[EventType "team-tourn"]
[EventCountry "ESP"]
[SourceTitle "playchess.com"]
[Source "ChessBase"]
[SourceQuality "1"]
[WhiteTeam "Georgia"]
[BlackTeam "Azerbaijan"]
[WhiteTeamCountry "GEO"]
[BlackTeamCountry "AZE"]
[TimeControl "2700+10"]

1. Nf3 {[%emt 0:00:05]} d5 {[%emt 0:00:21]} 2. g3 {[%emt 0:00:04]} c6 {[%emt 0:
00:04]} 3. Bg2 {[%emt 0:00:04]} Bg4 {[%emt 0:00:04]} 4. O-O {[%emt 0:00:11]}
Nf6 {[%emt 0:01:11]} 5. d4 {[%emt 0:01:33]} e6 {[%emt 0:01:04]} 6. h3 {[%emt 0:
04:29]} Bf5 {[%emt 0:03:04]} 7. c4 {[%emt 0:00:35]} Be7 {[%emt 0:02:14]} 8. Nc3
{[%emt 0:01:29]} O-O {[%emt 0:01:27]} 9. Ne5 {[%emt 0:04:19]} Ne4 {[%emt 0:04:
48]} 10. Qb3 {[%emt 0:05:17]} Qb6 {[%emt 0:03:24]} 11. g4 {[%emt 0:06:40]} Nxc3
{[%emt 0:02:46]} 12. Qxc3 {[%emt 0:05:46]} Be4 {[%emt 0:00:34]} 13. c5 {
[%emt 0:00:08]} Qb5 {[%emt 0:06:20]} 14. f3 {[%emt 0:01:19]} Bg6 {[%emt 0:04:
55]} 15. e4 {[%emt 0:00:56]} b6 {[%emt 0:02:00]} 16. a4 {[%emt 0:00:13]} Qa6 {
[%emt 0:00:02]} 17. b4 {[%emt 0:00:03]} Rd8 {[%emt 0:02:17]} 18. Bd2 {[%emt 0:
06:48]} bxc5 {[%emt 0:00:53]} 19. bxc5 {[%emt 0:00:02]} Nd7 {[%emt 0:00:02]}
20. Nxg6 {[%emt 0:00:12]} hxg6 {[%emt 0:00:07]} 21. e5 {[%emt 0:00:04]} f5 {
[%emt 0:04:28]} 22. exf6 {[%emt 0:02:59]} Bxf6 {[%emt 0:00:01]} 23. g5 {
[%emt 0:00:02]} Be7 {[%emt 0:00:13]} 24. f4 {[%emt 0:00:02]} Rab8 {[%emt 0:01:
15]} 25. Rfe1 {[%emt 0:00:23]} Nf8 {[%emt 0:00:04]} 26. Bf1 {[%emt 0:01:28]}
Qc8 {[%emt 0:00:51]} 27. Rab1 {[%emt 0:01:30]} Rxb1 {[%emt 0:04:33]} 28. Rxb1 {
[%emt 0:00:01]} Re8 {[%emt 0:00:17]} 29. Qd3 {[%emt 0:00:22]} Qd7 {[%emt 0:00:
27]} 30. Be2 {[%emt 0:01:21]} Bd8 {[%emt 0:00:04]} 31. Qa6 {[%emt 0:00:22]} Re7
{[%emt 0:00:16]} 32. Rb8 {[%emt 0:00:34]} Rf7 {[%emt 0:00:11]} 33. Bg4 {
[%emt 0:00:36]} Kh7 {[%emt 0:00:01]} 34. Kg2 {[%emt 0:00:25]} Kg8 {[%emt 0:00:
19]} 35. Qc8 {[%emt 0:00:05]} Bc7 {[%emt 0:00:11]} 36. Qxd7 {[%emt 0:00:10]}
Rxd7 {[%emt 0:00:01]} 37. Bxe6+ {[%emt 0:00:01]} 1-0

[Event "FIDE Women World-chT-KO 2021"]
[Site "Sitges"]
[Date "2021.09.30"]
[Round "1.1"]
[White "Harika, Dronavalli"]
[Black "Abdumalik, Zhansaya"]
[Result "1/2-1/2"]
[ECO "C77"]
[WhiteElo "2511"]
[BlackElo "2502"]
[Annotator "ChessBase"]
[PlyCount "159"]
[EventDate "2021.09.30"]
[EventType "team-tourn"]
[EventCountry "ESP"]
[SourceTitle "playchess.com"]
[Source "ChessBase"]
[SourceQuality "1"]
[WhiteTeam "India"]
[BlackTeam "Kazakhstan"]
[WhiteTeamCountry "IND"]
[BlackTeamCountry "KAZ"]
[TimeControl "2700+10"]

1. e4 {[%emt 0:00:03]} e5 {[%emt 0:00:08]} 2. Nf3 {[%emt 0:00:04]} Nc6 {
[%emt 0:00:03]} 3. Bb5 {[%emt 0:00:27]} a6 {[%emt 0:00:05]} 4. Ba4 {[%emt 0:00:
18]} Nf6 {[%emt 0:00:15]} 5. d3 {[%emt 0:00:36]} b5 {[%emt 0:01:28]} 6. Bb3 {
[%emt 0:00:06]} Be7 {[%emt 0:00:21]} 7. O-O {[%emt 0:00:38]} d6 {[%emt 0:00:48]
} 8. a4 {[%emt 0:00:20]} Bb7 {[%emt 0:02:37]} 9. Nc3 {[%emt 0:02:31]} Na5 {
[%emt 0:01:13]} 10. Ba2 {[%emt 0:01:13]} b4 {[%emt 0:00:10]} 11. Ne2 {[%emt 0:
00:08]} c5 {[%emt 0:00:10]} 12. Ng3 {[%emt 0:00:58]} Bc8 {[%emt 0:01:23]} 13.
c3 {[%emt 0:00:43]} Rb8 {[%emt 0:02:04]} 14. Bd2 {[%emt 0:03:59]} bxc3 {
[%emt 0:03:37]} 15. bxc3 {[%emt 0:00:30]} O-O {[%emt 0:00:19]} 16. h3 {[%emt 0:
00:56]} Qc7 {[%emt 0:01:02]} 17. Bg5 {[%emt 0:04:29]} c4 {[%emt 0:02:28]} 18.
dxc4 {[%emt 0:01:35]} h6 {[%emt 0:02:02]} 19. Bxf6 {[%emt 0:02:11]} Bxf6 {
[%emt 0:00:11]} 20. Nh2 {[%emt 0:00:16]} Bg5 {[%emt 0:01:53]} 21. Nf5 {[%emt 0:
05:51]} Bxf5 {[%emt 0:05:08]} 22. exf5 {[%emt 0:00:02]} Rb2 {[%emt 0:01:22]}
23. Nf3 {[%emt 0:02:28]} Be7 {[%emt 0:01:19]} 24. Qd5 {[%emt 0:01:39]} Qc5 {
[%emt 0:00:59]} 25. Qxc5 {[%emt 0:04:21]} dxc5 {[%emt 0:00:12]} 26. Nxe5 {
[%emt 0:00:35]} Rd8 {[%emt 0:01:18]} 27. Ng4 {[%emt 0:03:41]} Rdd2 {[%emt 0:02:
32]} 28. Rae1 {[%emt 0:00:06]} Kf8 {[%emt 0:01:29]} 29. Bb1 {[%emt 0:00:21]}
Nxc4 {[%emt 0:00:14]} 30. Be4 {[%emt 0:02:26]} h5 {[%emt 0:02:26]} 31. Ne3 {
[%emt 0:00:04]} Nxe3 {[%emt 0:01:34]} 32. Rxe3 {[%emt 0:00:02]} c4 {[%emt 0:00:
51]} 33. Bc6 {[%emt 0:00:11]} Re2 {[%emt 0:03:11]} 34. Rxe2 {[%emt 0:00:37]}
Rxe2 {[%emt 0:00:01]} 35. Rb1 {[%emt 0:00:35]} g6 {[%emt 0:00:35]} 36. fxg6 {
[%emt 0:00:25]} fxg6 {[%emt 0:00:01]} 37. Bd5 {[%emt 0:00:01]} Ra2 {[%emt 0:01:
19]} 38. Rb8+ {[%emt 0:02:16]} Kg7 {[%emt 0:00:01]} 39. Rb7 {[%emt 0:00:22]}
Kf8 {[%emt 0:00:22]} 40. Bxc4 {[%emt 0:00:20]} Rxa4 {[%emt 0:00:04]} 41. Bd3 {
[%emt 0:00:32]} g5 {[%emt 0:00:16]} 42. g3 {[%emt 0:00:06]} h4 {[%emt 0:00:24]}
43. Kg2 {[%emt 0:00:15]} a5 {[%emt 0:00:32]} 44. Ra7 {[%emt 0:00:52]} Ra2 {
[%emt 0:00:14]} 45. Ra8+ {[%emt 0:00:01]} Kg7 {[%emt 0:00:01]} 46. Bc4 {
[%emt 0:00:08]} Rc2 {[%emt 0:00:32]} 47. gxh4 {[%emt 0:00:16]} Rxc3 {[%emt 0:
00:25]} 48. Be6 {[%emt 0:00:08]} gxh4 {[%emt 0:00:40]} 49. Rxa5 {[%emt 0:00:03]
} Kf6 {[%emt 0:00:24]} 50. Bg4 {[%emt 0:00:05]} Bc5 {[%emt 0:00:05]} 51. Ra6+ {
[%emt 0:00:13]} Kg5 {[%emt 0:00:18]} 52. Ra2 {[%emt 0:00:18]} Bd4 {[%emt 0:00:
45]} 53. Rd2 {[%emt 0:00:18]} Be5 {[%emt 0:00:05]} 54. Rd8 {[%emt 0:00:32]} Rc2
{[%emt 0:01:03]} 55. Kf3 {[%emt 0:00:18]} Rc4 {[%emt 0:00:19]} 56. Rg8+ {
[%emt 0:00:17]} Kh6 {[%emt 0:00:17]} 57. Rf8 {[%emt 0:00:18]} Bg7 {[%emt 0:00:
07]} 58. Rf5 {[%emt 0:00:21]} Kg6 {[%emt 0:00:14]} 59. Rd5 {[%emt 0:00:07]} Rd4
{[%emt 0:00:07]} 60. Rb5 {[%emt 0:00:10]} Bf6 {[%emt 0:00:22]} 61. Ke3 {
[%emt 0:00:06]} Ra4 {[%emt 0:00:07]} 62. Bf5+ {[%emt 0:00:23]} Kh6 {[%emt 0:00:
06]} 63. f4 {[%emt 0:00:12]} Bd4+ {[%emt 0:00:42]} 64. Kf3 {[%emt 0:00:07]} Bf6
{[%emt 0:00:01]} 65. Rb7 {[%emt 0:00:11]} Ra3+ {[%emt 0:00:11]} 66. Ke2 {
[%emt 0:00:07]} Ra2+ {[%emt 0:00:13]} 67. Kd3 {[%emt 0:00:20]} Ra3+ {[%emt 0:
00:01]} 68. Ke2 {[%emt 0:00:19]} Ra2+ {[%emt 0:00:02]} 69. Ke3 {[%emt 0:00:01]}
Ra3+ {[%emt 0:00:01]} 70. Bd3 {[%emt 0:00:04]} Bg7 {[%emt 0:00:12]} 71. Rb6+ {
[%emt 0:00:07]} Kh5 {[%emt 0:00:03]} 72. Kd2 {[%emt 0:01:01]} Ra2+ {[%emt 0:00:
07]} 73. Kd1 {[%emt 0:00:06]} Ra1+ {[%emt 0:00:15]} 74. Kd2 {[%emt 0:00:10]}
Ra2+ {[%emt 0:00:02]} 75. Ke1 {[%emt 0:00:28]} Bc3+ {[%emt 0:00:17]} 76. Kf1 {
[%emt 0:00:01]} Rf2+ {[%emt 0:00:09]} 77. Kxf2 {[%emt 0:00:01]} Bd4+ {[%emt 0:
00:01]} 78. Kf3 {[%emt 0:00:05]} Bxb6 {[%emt 0:00:02]} 79. Bb5 {[%emt 0:00:02]}
Kg6 {[%emt 0:00:09]} 80. Ke4 1/2-1/2

[Event "FIDE Women World-chT-KO 2021"]
[Site "Sitges"]
[Date "2021.09.30"]
[Round "1.1"]
[White "Saduakassova, Dinara"]
[Black "Vaishali R"]
[Result "1/2-1/2"]
[ECO "A48"]
[WhiteElo "2489"]
[BlackElo "2414"]
[Annotator "ChessBase"]
[PlyCount "77"]
[EventDate "2021.09.30"]
[EventType "team-tourn"]
[EventCountry "ESP"]
[SourceTitle "playchess.com"]
[Source "ChessBase"]
[SourceQuality "1"]
[WhiteTeam "Kazakhstan"]
[BlackTeam "India"]
[WhiteTeamCountry "KAZ"]
[BlackTeamCountry "IND"]
[TimeControl "2700+10"]

1. d4 {[%emt 0:00:04]} Nf6 {[%emt 0:00:16]} 2. Nf3 {[%emt 0:00:03]} g6 {
[%emt 0:00:05]} 3. c4 {[%emt 0:00:03]} Bg7 {[%emt 0:00:05]} 4. g3 {[%emt 0:00:
01]} c5 {[%emt 0:00:08]} 5. Bg2 {[%emt 0:00:39]} cxd4 {[%emt 0:00:10]} 6. Nxd4
{[%emt 0:00:10]} h5 {[%emt 0:00:48]} 7. Nf3 {[%emt 0:03:47]} O-O {[%emt 0:03:
07]} 8. Nc3 {[%emt 0:01:27]} Qc7 {[%emt 0:00:58]} 9. Qd3 {[%emt 0:01:03]} Na6 {
[%emt 0:01:32]} 10. Nb5 {[%emt 0:02:01]} Qd8 {[%emt 0:03:25]} 11. Be3 {[%emt 0:
02:36]} d5 {[%emt 0:01:35]} 12. O-O {[%emt 0:03:09]} Bf5 {[%emt 0:03:57]} 13.
Qa3 {[%emt 0:03:49]} dxc4 {[%emt 0:02:49]} 14. Rac1 {[%emt 0:00:10]} Qe8 {
[%emt 0:06:15]} 15. Qa5 {[%emt 0:03:46]} Be4 {[%emt 0:08:58]} 16. Rxc4 {
[%emt 0:01:07]} Bd5 {[%emt 0:00:02]} 17. Rcc1 {[%emt 0:02:03]} Ng4 {[%emt 0:01:
58]} 18. Bd4 {[%emt 0:04:30]} e5 {[%emt 0:01:06]} 19. Bc3 {[%emt 0:06:33]} Bc6
{[%emt 0:02:00]} 20. Na3 {[%emt 0:02:28]} Rd8 {[%emt 0:04:37]} 21. Rfd1 {
[%emt 0:04:21]} Rxd1+ {[%emt 0:03:03]} 22. Rxd1 {[%emt 0:00:06]} Qc8 {[%emt 0:
00:09]} 23. Nc2 {[%emt 0:02:23]} b6 {[%emt 0:01:18]} 24. Qa3 {[%emt 0:00:02]}
Nc5 {[%emt 0:00:16]} 25. h3 {[%emt 0:01:25]} Nxf2 {[%emt 0:00:27]} 26. Kxf2 {
[%emt 0:00:01]} Ne4+ {[%emt 0:00:01]} 27. Ke1 {[%emt 0:00:01]} Nxg3 {[%emt 0:
00:01]} 28. Bxe5 {[%emt 0:00:36]} Bxe5 {[%emt 0:00:29]} 29. Nxe5 {[%emt 0:00:
01]} Bxg2 {[%emt 0:00:10]} 30. Qxg3 {[%emt 0:00:34]} Qxc2 {[%emt 0:00:11]} 31.
Qxg2 {[%emt 0:00:18]} Qxb2 {[%emt 0:00:02]} 32. Qd5 {[%emt 0:00:33]} Qc3+ {
[%emt 0:00:01]} 33. Kf2 {[%emt 0:00:18]} Qxh3 {[%emt 0:00:10]} 34. Rg1 {
[%emt 0:00:19]} Qf5+ {[%emt 0:00:13]} 35. Ke1 {[%emt 0:00:01]} Qb1+ {[%emt 0:
00:08]} 36. Kf2 {[%emt 0:00:05]} Qf5+ {[%emt 0:00:02]} 37. Ke1 {[%emt 0:00:03]}
Qb1+ {[%emt 0:00:01]} 38. Kf2 {[%emt 0:00:15]} Qf5+ {[%emt 0:00:02]} 39. Ke1 {
[%emt 0:00:27]} 1/2-1/2

[Event "FIDE Women World-chT-KO 2021"]
[Site "Sitges"]
[Date "2021.09.30"]
[Round "1.1"]
[White "Arabidze, Meri"]
[Black "Fataliyeva, Ulviyya"]
[Result "1-0"]
[ECO "D30"]
[WhiteElo "2441"]
[BlackElo "2277"]
[Annotator "ChessBase"]
[PlyCount "153"]
[EventDate "2021.09.30"]
[EventType "team-tourn"]
[EventCountry "ESP"]
[SourceTitle "playchess.com"]
[Source "ChessBase"]
[SourceQuality "1"]
[WhiteTeam "Georgia"]
[BlackTeam "Azerbaijan"]
[WhiteTeamCountry "GEO"]
[BlackTeamCountry "AZE"]
[TimeControl "2700+10"]

1. d4 {[%emt 0:00:03]} d5 {[%emt 0:00:01]} 2. c4 {[%emt 0:00:05]} e6 {[%emt 0:
00:02]} 3. Nf3 {[%emt 0:00:10]} a6 {[%emt 0:00:01]} 4. Bg5 {[%emt 0:00:17]} Be7
{[%emt 0:00:02]} 5. Bxe7 {[%emt 0:00:07]} Nxe7 {[%emt 0:00:02]} 6. Nbd2 {
[%emt 0:00:34]} O-O {[%emt 0:00:28]} 7. g3 {[%emt 0:00:24]} dxc4 {[%emt 0:00:
03]} 8. Nxc4 {[%emt 0:00:57]} Qd5 {[%emt 0:00:51]} 9. Nce5 {[%emt 0:06:17]}
Nbc6 {[%emt 0:00:02]} 10. Nxc6 {[%emt 0:01:04]} Nxc6 {[%emt 0:00:03]} 11. Bg2 {
[%emt 0:05:46]} Rd8 {[%emt 0:00:20]} 12. O-O {[%emt 0:01:13]} Nxd4 {[%emt 0:03:
53]} 13. Rc1 {[%emt 0:02:49]} Nxf3+ {[%emt 0:04:14]} 14. Bxf3 {[%emt 0:00:05]}
Qg5 {[%emt 0:00:02]} 15. Qb3 {[%emt 0:01:08]} Qe7 {[%emt 0:03:29]} 16. Rfd1 {
[%emt 0:02:40]} Rd6 {[%emt 0:02:27]} 17. Qc3 {[%emt 0:04:52]} Qd8 {[%emt 0:01:
31]} 18. e4 {[%emt 0:01:45]} e5 {[%emt 0:04:06]} 19. Qxe5 {[%emt 0:02:47]} Be6
{[%emt 0:00:05]} 20. b3 {[%emt 0:01:37]} a5 {[%emt 0:04:08]} 21. Qb5 {[%emt 0:
02:53]} Rxd1+ {[%emt 0:02:11]} 22. Rxd1 {[%emt 0:00:03]} Qc8 {[%emt 0:00:01]}
23. e5 {[%emt 0:01:40]} c6 {[%emt 0:02:34]} 24. Qb6 {[%emt 0:00:01]} h6 {
[%emt 0:00:13]} 25. h4 {[%emt 0:00:28]} Bg4 {[%emt 0:01:42]} 26. Bxg4 {[%emt 0:
03:26]} Qxg4 {[%emt 0:00:02]} 27. Rd8+ {[%emt 0:03:05]} Rxd8 {[%emt 0:00:02]}
28. Qxd8+ {[%emt 0:00:01]} Kh7 {[%emt 0:00:01]} 29. Qxa5 {[%emt 0:00:02]} Qd1+
{[%emt 0:00:38]} 30. Kg2 {[%emt 0:00:07]} Qe2 {[%emt 0:00:02]} 31. Qb6 {
[%emt 0:01:14]} Qe4+ {[%emt 0:06:13]} 32. Kh2 {[%emt 0:00:01]} Qc2 {[%emt 0:00:
07]} 33. a4 {[%emt 0:01:43]} c5 {[%emt 0:01:57]} 34. Qxb7 {[%emt 0:00:02]}
Qxf2+ {[%emt 0:00:02]} 35. Qg2 {[%emt 0:00:01]} Qe1 {[%emt 0:00:18]} 36. Qc2+ {
[%emt 0:00:13]} g6 {[%emt 0:00:38]} 37. Qxc5 {[%emt 0:00:17]} Qe2+ {[%emt 0:00:
04]} 38. Kg1 {[%emt 0:00:08]} Qd1+ {[%emt 0:00:34]} 39. Kg2 {[%emt 0:00:01]}
Qxb3 {[%emt 0:00:02]} 40. a5 {[%emt 0:00:13]} Qa2+ {[%emt 0:00:03]} 41. Kf3 {
[%emt 0:00:07]} Qb3+ {[%emt 0:00:43]} 42. Kf2 {[%emt 0:00:13]} Qb2+ {[%emt 0:
00:45]} 43. Ke1 {[%emt 0:00:03]} Qb1+ {[%emt 0:00:42]} 44. Kd2 {[%emt 0:00:02]}
Qb2+ {[%emt 0:00:12]} 45. Kd3 {[%emt 0:00:11]} Qb3+ {[%emt 0:00:05]} 46. Qc3 {
[%emt 0:00:15]} Qd5+ {[%emt 0:00:08]} 47. Ke3 {[%emt 0:00:12]} Qd7 {[%emt 0:01:
30]} 48. Qc4 {[%emt 0:00:23]} Qa7+ {[%emt 0:00:44]} 49. Kd3 {[%emt 0:00:07]}
Qf2 {[%emt 0:00:44]} 50. Qf4 {[%emt 0:01:04]} Qa2 {[%emt 0:00:04]} 51. Qc4 {
[%emt 0:00:15]} Qa3+ {[%emt 0:00:41]} 52. Kd4 {[%emt 0:00:04]} Kg7 {[%emt 0:00:
04]} 53. a6 {[%emt 0:00:09]} Qxg3 {[%emt 0:00:02]} 54. Kd5 {[%emt 0:00:10]} Qe3
{[%emt 0:02:10]} 55. Kc6 {[%emt 0:00:27]} Qxe5 {[%emt 0:00:29]} 56. a7 {
[%emt 0:00:05]} Qe8+ {[%emt 0:00:04]} 57. Kb6 {[%emt 0:00:10]} Qd8+ {[%emt 0:
00:41]} 58. Qc7 {[%emt 0:00:00]} Qd4+ {[%emt 0:00:08]} 59. Qc5 {[%emt 0:00:06]}
Qd8+ {[%emt 0:00:54]} 60. Kb7 {[%emt 0:00:01]} Qd7+ {[%emt 0:00:09]} 61. Ka6 {
[%emt 0:00:01]} Qa4+ {[%emt 0:00:15]} 62. Kb6 {[%emt 0:00:00]} Qe8 {[%emt 0:00:
51]} 63. Qc6 {[%emt 0:00:19]} Qd8+ {[%emt 0:00:02]} 64. Ka6 {[%emt 0:00:22]}
Qd3+ {[%emt 0:00:03]} 65. Kb7 {[%emt 0:00:01]} Qb3+ {[%emt 0:00:12]} 66. Kc8 {
[%emt 0:00:40]} Qh3+ {[%emt 0:00:03]} 67. Kb8 {[%emt 0:00:05]} Qh2+ {[%emt 0:
00:25]} 68. Qc7 {[%emt 0:00:08]} Qb2+ {[%emt 0:00:02]} 69. Kc8 {[%emt 0:00:05]}
Qg2 {[%emt 0:00:20]} 70. Qc3+ {[%emt 0:00:09]} Kh7 {[%emt 0:00:08]} 71. Kb8 {
[%emt 0:00:02]} Qh2+ {[%emt 0:00:07]} 72. Qc7 {[%emt 0:00:03]} Qb2+ {[%emt 0:
00:09]} 73. Kc8 {[%emt 0:00:06]} Qa3 {[%emt 0:00:18]} 74. Qxf7+ {[%emt 0:00:04]
} Kh8 {[%emt 0:00:01]} 75. Qe8+ {[%emt 0:00:27]} Kh7 {[%emt 0:00:03]} 76. Qd7+
{[%emt 0:00:03]} Kg8 {[%emt 0:00:07]} 77. Qd5+ {[%emt 0:00:04]} 1-0